bitfinex-derivatives/quotes_BNBF0:USTF0_20250608
["timestamp","ask_amount","ask_price","bid_price","bid_amount"]
[1749341779786,1.10273595,650.32,649.24,0.421]
[1749341779986,1.10273595,650.31,649.24,0.421]
[1749341780189,1.10273595,650.3,649.24,0.421]
[1749341780390,0.26776749,650.05,649.24,0.421]
[1749341781488,1.10273595,650.24,649.24,0.421]
[1749341781691,1.10273595,650.23,649.24,0.421]
[1749341781985,1.23075349,650.36,649.24,0.421]
[1749341781986,1.10273595,650.22,649.24,0.421]
[1749341782190,1.10273595,650.21,649.24,0.421]
[1749341782490,1.10273595,650.2,649.24,0.421]
[1749341782784,1.10273595,650.19,649.24,0.421]
[1749341782990,0.26777779,649.97,649.24,0.421]
[1749341784487,1.10509603,650.31,649.24,0.421]
[1749341784786,0.26776646,649.79,649.26,3.83742239]
[1749341784990,1.10509603,650.29,649.26,3.83742239]
[1749341785290,1.10509603,650.28,649.26,3.83742239]
[1749341785488,1.10509603,650.27,649.26,3.83742239]
[1749341785687,1.10509603,650.26,649.24,0.421]
[1749341785886,0.26774895,650.03,649.24,0.421]
[1749341787491,1.019,650.4,649.24,0.421]
[1749341787787,0.26776646,649.84,649.24,0.421]
[1749341787991,1.10498208,650.38,649.24,0.421]
[1749341788191,1.10498208,650.37,649.24,0.421]
[1749341788487,1.10498208,650.36,649.24,0.421]
[1749341788686,1.10498208,650.35,649.24,0.421]
[1749341788891,0.26777058,650.09,649.25,0.66]
[1749341790592,1.40469391,650.39,649.25,0.66]
[1749341790892,1.10508776,650.38,649.25,0.66]
[1749341791094,1.10508776,650.37,649.25,0.66]
[1749341791292,1.10508776,650.36,649.25,0.66]
[1749341791490,1.10508776,650.35,649.25,0.66]
[1749341791695,1.10508776,650.34,649.25,0.66]
[1749341791895,0.26776543,650.08,649.25,0.66]
[1749341793591,0.3075078,650.39,649.25,0.66]
[1749341793895,1.10506811,650.38,649.25,0.66]
[1749341794194,1.10506811,650.37,649.25,0.66]
[1749341794390,1.10506811,650.36,649.25,0.66]
[1749341794595,1.10506811,650.35,649.25,0.66]
[1749341794792,1.10506811,650.34,649.25,0.66]
[1749341794994,0.2677644,650.09,649.25,0.66]
[1749341796397,1.063,650.08,649.26,0.421]
[1749341796699,0.26776131,649.89,649.26,0.421]
[1749341799497,1.063,650.08,649.26,0.421]
[1749341800001,0.26780767,649.74,649.26,0.421]
[1749341800197,1.063,650.08,649.26,0.421]
[1749341801194,0.26782622,649.88,649.26,0.421]
[1749341802500,1.063,650.08,649.26,0.421]
[1749341802801,1.10625048,650.07,649.26,0.421]
[1749341803001,1.10625048,650.06,649.26,0.421]
[1749341803201,1.10625048,650.05,649.26,0.421]
[1749341803500,1.063,650.08,649.26,0.421]
[1749341803501,1.10625048,650.04,649.26,0.421]
[1749341803697,1.063,650.08,649.26,0.421]
[1749341803901,0.26783034,649.85,649.26,0.421]
[1749341805602,1.1057082,650.04,649.26,0.421]
[1749341805798,1.063,650.08,649.26,0.421]
[1749341805998,1.105551,650.07,649.26,0.421]
[1749341806202,1.105551,650.06,649.26,0.421]
[1749341806400,1.105551,650.05,649.26,0.421]
[1749341806601,1.063,650.08,649.26,0.421]
[1749341806800,1.10526693,650.07,649.26,0.421]
[1749341807001,0.26782931,649.86,649.26,0.421]
[1749341808502,1.105127,650.07,649.26,0.421]
[1749341808702,1.105127,650.06,649.26,0.421]
[1749341808905,1.063,650.08,649.26,0.421]
[1749341809105,1.10504977,650.07,649.26,0.421]
[1749341809307,1.10504977,650.06,649.26,0.421]
[1749341809504,1.10504977,650.05,649.26,0.421]
[1749341809803,1.063,650.08,649.26,0.421]
[1749341810005,0.26782931,649.86,649.26,0.421]
[1749341811610,1.063,650.08,649.26,0.421]
[1749341812911,0.2678324,649.88,649.26,0.421]
[1749341814715,1.063,650.08,649.26,0.421]
[1749341815210,1.063,650.08,649.27,0.92]
[1749341815916,0.26782416,649.88,649.27,0.92]
[1749341817618,1.063,650.08,649.27,0.92]
[1749341817819,0.26782416,649.73,649.27,0.92]
[1749341818015,1.063,650.08,649.27,0.92]
[1749341818415,1.10550096,650.07,649.27,0.92]
[1749341818618,1.063,650.08,649.27,0.92]
[1749341819122,0.26782519,649.88,649.27,0.92]
[1749341820525,1.063,650.08,649.27,0.92]
[1749341821224,1.10555828,650.07,649.27,0.92]
[1749341821422,1.063,650.08,649.27,0.92]
[1749341821626,1.10555692,650.07,649.27,0.92]
[1749341821920,0.26782416,649.88,649.27,0.92]
[1749341822525,0.26782416,649.88,649.28,0.421]
[1749341823526,1.063,650.08,649.28,0.421]
[1749341823821,1.10576196,650.07,649.28,0.421]
[1749341824020,1.10576196,650.06,649.28,0.421]
[1749341824220,1.063,650.08,649.28,0.421]
[1749341824526,1.10595118,650.07,649.28,0.421]
[1749341824826,0.26782416,649.89,649.28,0.421]
[1749341826522,1.063,650.08,649.28,0.421]
[1749341826726,1.10641343,650.07,649.28,0.421]
[1749341827025,1.10641343,650.06,649.28,0.421]
[1749341827226,1.10641343,650.05,649.28,0.421]
[1749341827621,1.10641343,650.04,649.28,0.421]
[1749341827922,0.2678458,649.86,649.28,0.421]
[1749341829628,1.063,650.08,649.28,0.421]
[1749341829824,1.10623196,650.07,649.28,0.421]
[1749341830029,1.10623196,650.06,649.28,0.421]
[1749341830325,1.10623196,650.05,649.28,0.421]
[1749341830525,1.10623196,650.04,649.28,0.421]
[1749341830729,1.10623196,650.03,649.28,0.421]
[1749341830929,0.2678458,649.86,649.28,0.421]
[1749341832528,1.10587271,650.07,649.28,0.421]
[1749341832825,1.10587271,650.06,649.28,0.421]
[1749341833024,1.10587271,650.05,649.28,0.421]
[1749341833229,1.10587271,650.04,649.28,0.421]
[1749341833426,1.10587271,650.03,649.28,0.421]
[1749341833628,1.10587271,650.02,649.28,0.421]
[1749341833826,0.26784787,649.85,649.28,0.421]
[1749341835630,1.10570988,650.05,649.28,0.421]
[1749341835929,0.26789529,649.71,649.28,0.421]
[1749341836228,1.10570988,650.03,649.28,0.421]
[1749341836532,1.10570988,650.02,649.28,0.421]
[1749341836831,1.10570988,650.01,649.28,0.421]
[1749341837128,1.10570988,650.0,649.29,0.688]
[1749341837429,0.26790148,649.83,649.29,0.688]
[1749341838431,1.10564038,650.05,649.29,0.688]
[1749341838631,1.10564038,650.04,649.29,0.688]
[1749341838829,0.26784374,649.87,649.29,0.688]
[1749341841436,1.10569489,650.18,649.29,0.688]
[1749341841637,0.743,649.86,649.29,0.688]
[1749341842938,0.26786333,649.72,649.29,0.688]
[1749341844538,0.743,649.86,649.29,0.688]
[1749341844735,0.26786333,649.62,649.29,0.688]
[1749341845238,0.743,649.86,649.29,0.688]
[1749341845937,0.26786333,649.72,649.29,0.688]
[1749341846637,0.26786333,649.72,649.3,0.421]
[1749341847539,0.743,649.86,649.3,0.421]
[1749341848939,0.26786333,649.73,649.3,0.421]
[1749341850636,0.743,649.86,649.3,0.421]
[1749341852036,0.2678592,649.73,649.3,0.421]
[1749341853539,0.743,649.86,649.3,0.421]
[1749341853738,0.26788292,649.63,649.3,0.421]
[1749341854041,0.743,649.86,649.3,0.421]
[1749341854941,0.26793654,649.73,649.3,0.421]
[1749341855439,0.26793654,649.73,649.31,0.788]
[1749341856641,0.743,649.86,649.31,0.788]
[1749341856841,0.2678489,649.63,649.31,0.788]
[1749341857040,0.743,649.86,649.31,0.788]
[1749341858144,0.2678489,649.73,649.31,0.788]
[1749341865646,0.743,649.86,649.31,0.788]
[1749341866844,0.2678489,649.73,649.31,0.788]
[1749341867247,0.2678489,649.73,649.32,0.421]
[1749341868747,0.2678489,649.63,649.32,0.421]
[1749341871251,0.2678489,649.63,649.33,0.903]
[1749341877458,0.743,649.86,649.33,0.903]
[1749341877855,0.26784683,649.58,649.33,0.903]
[1749341878061,0.743,649.86,649.33,0.903]
[1749341878956,0.26784683,649.73,649.33,0.903]
[1749341880459,0.743,649.86,649.33,0.903]
[1749341880760,0.26784683,649.64,649.33,0.903]
[1749341881161,0.743,649.86,649.33,0.903]
[1749341882063,0.26784683,649.73,649.33,0.903]
[1749341885163,0.26784683,649.73,649.34,0.421]
[1749341886464,0.743,649.86,649.34,0.421]
[1749341886868,0.26784683,649.64,649.34,0.421]
[1749341887069,0.743,649.86,649.34,0.421]
[1749341888071,0.26784683,649.74,649.34,0.421]
[1749341889467,0.743,649.86,649.34,0.421]
[1749341889967,0.26784683,649.74,649.34,0.421]
[1749341895478,0.743,649.86,649.34,0.421]
[1749341895776,0.26784683,649.65,649.34,0.421]
[1749341896072,0.743,649.86,649.34,0.421]
[1749341897078,0.26787261,649.74,649.34,0.421]
[1749341897378,1.11736783,649.73,649.34,0.421]
[1749341897681,0.26787261,649.74,649.34,0.421]
[1749341898283,1.11707443,649.73,649.34,0.421]
[1749341898479,0.743,649.86,649.34,0.421]
[1749341898680,1.11707608,649.85,649.34,0.421]
[1749341898878,0.26793964,649.64,649.34,0.421]
[1749341899178,0.743,649.86,649.34,0.421]
[1749341899384,1.11690186,649.85,649.34,0.421]
[1749341899579,1.11690186,649.84,649.34,0.421]
[1749341899782,1.11690186,649.83,649.35,0.682]
[1749341899983,0.26792829,649.72,649.35,0.682]
[1749341901586,2.3337584,650.11,649.35,0.682]
[1749341901784,0.26786333,649.63,649.35,0.682]
[1749341902285,1.23510888,650.08,649.35,0.682]
[1749341902584,1.11641303,650.07,649.35,0.682]
[1749341902779,1.11641303,650.06,649.35,0.682]
[1749341902978,0.26784168,649.9,649.35,0.682]
[1749341903180,1.11641303,649.89,649.35,0.682]
[1749341903383,0.26784168,649.9,649.35,0.682]
[1749341903384,1.11641303,649.88,649.35,0.682]
[1749341903581,1.11641303,649.87,649.35,0.682]
[1749341903781,1.11641303,649.86,649.35,0.682]
[1749341903985,1.11641303,649.85,649.35,0.682]
[1749341904185,1.11641303,649.84,649.36,0.421]
[1749341904484,1.11641303,649.83,649.36,0.421]
[1749341904683,1.11641303,649.82,649.36,0.421]
[1749341904989,1.11641303,649.81,649.36,0.421]
[1749341905185,1.54297831,650.11,649.36,0.421]
[1749341905386,1.11612967,650.1,649.36,0.421]
[1749341905586,1.11612967,650.09,649.36,0.421]
[1749341905889,1.11612967,650.08,649.36,0.421]
[1749341906082,0.26783859,649.92,649.36,0.421]
[1749341906289,1.11612967,649.91,649.36,0.421]
[1749341906585,1.11612967,649.9,649.36,0.421]
[1749341906783,1.11612967,649.89,649.36,0.421]
[1749341906991,1.11612967,649.88,649.36,0.421]
[1749341907183,1.11612967,649.87,649.36,0.421]
[1749341907386,1.11612967,649.86,649.36,0.421]
[1749341907584,1.11612967,649.85,649.36,0.421]
[1749341907788,1.23530298,650.08,649.36,0.421]
[1749341908085,1.11613252,650.07,649.36,0.421]
[1749341908384,1.11613252,650.06,649.36,0.421]
[1749341908588,1.11613252,650.05,649.36,0.421]
[1749341908888,1.11613252,650.04,649.36,0.421]
[1749341909188,0.2678324,649.89,649.36,0.421]
[1749341909389,1.11613252,649.88,649.36,0.421]
[1749341909584,1.11613252,649.87,649.36,0.421]
[1749341909888,1.11613252,649.86,649.36,0.421]
[1749341910088,0.2678324,649.89,649.36,0.421]
[1749341910385,1.11620406,649.88,649.36,0.421]
[1749341910587,1.11620406,649.87,649.36,0.421]
[1749341910786,1.11620406,649.86,649.36,0.421]
[1749341910988,2.38391175,650.09,649.36,0.421]
[1749341911184,1.11618967,650.08,649.36,0.421]
[1749341911389,1.11618967,650.07,649.36,0.421]
[1749341911586,1.11618967,650.06,649.36,0.421]
[1749341911889,0.26783137,649.9,649.36,0.421]
[1749341912188,1.11618967,649.89,649.36,0.421]
[1749341912389,1.11618967,649.88,649.36,0.421]
[1749341912584,1.11618967,649.87,649.36,0.421]
[1749341912787,0.26783137,649.9,649.36,0.421]
[1749341912985,1.11626193,649.89,649.36,0.421]
[1749341913186,1.11626193,649.88,649.36,0.421]
[1749341913492,1.11626193,649.87,649.36,0.421]
[1749341913690,1.14836756,650.06,649.36,0.421]
[1749341913892,1.1162608,650.05,649.36,0.421]
[1749341914092,1.1162608,650.04,649.36,0.421]
[1749341914291,1.1162608,650.03,649.36,0.421]
[1749341914487,1.1162608,650.02,649.36,0.421]
[1749341914692,1.1162608,650.01,649.36,0.421]
[1749341914888,1.1162608,650.0,649.36,0.421]
[1749341915087,0.26786848,649.86,649.36,0.421]
[1749341915690,0.26786848,649.86,649.37,0.701]
[1749341916695,1.14836756,650.06,649.37,0.701]
[1749341916896,0.26783034,649.74,649.37,0.701]
[1749341917096,1.1162849,650.04,649.37,0.701]
[1749341917393,1.1162849,650.03,649.37,0.701]
[1749341917590,1.1162849,650.02,649.37,0.701]
[1749341917890,1.1162849,650.01,649.37,0.701]
[1749341918090,0.26784374,649.87,649.37,0.701]
[1749341919592,1.14836756,650.06,649.37,0.701]
[1749341919795,0.26784065,649.75,649.37,0.701]
[1749341920191,1.14836756,650.06,649.37,0.701]
[1749341920496,1.11558571,650.05,649.37,0.701]
[1749341920795,1.11558571,650.04,649.37,0.701]
[1749341920995,0.26784168,649.89,649.37,0.701]
[1749341921194,1.11558571,649.88,649.38,0.417]
[1749341921393,0.26784168,649.89,649.38,0.417]
[1749341921394,1.11558571,649.87,649.38,0.417]
[1749341921596,0.26784168,649.89,649.38,0.417]
[1749341921797,1.11558416,649.88,649.38,0.417]
[1749341921997,1.11558416,649.87,649.38,0.417]
[1749341922197,0.26784168,649.89,649.38,0.417]
[1749341922394,1.11558609,649.88,649.38,0.417]
[1749341922697,1.11558609,649.87,649.38,0.417]
[1749341922998,0.26784065,649.77,649.38,0.417]
[1749341925502,1.14836756,650.05,649.38,0.417]
[1749341925700,1.11548492,650.04,649.38,0.417]
[1749341925900,0.26784168,649.68,649.38,0.417]
[1749341926100,1.11548492,650.02,649.38,0.417]
[1749341926302,1.11548492,650.01,649.38,0.417]
[1749341926502,1.11548492,650.0,649.38,0.417]
[1749341926699,1.11548492,649.99,649.38,0.417]
[1749341926899,1.11548492,649.98,649.38,0.417]
[1749341927099,0.26784683,649.85,649.38,0.417]
[1749341928606,1.14836756,650.05,649.38,0.417]
[1749341928802,0.26784168,649.74,649.38,0.417]
[1749341929304,1.11267257,650.04,649.38,0.417]
[1749341929502,1.11267257,650.03,649.38,0.417]
[1749341929701,1.11267257,650.02,649.38,0.417]
[1749341930004,0.26784374,649.87,649.38,0.417]
[1749341931500,1.14836756,650.05,649.38,0.417]
[1749341931700,1.11550473,650.04,649.38,0.417]
[1749341931901,0.26784168,649.75,649.38,0.417]
[1749341932103,1.14836756,650.05,649.38,0.417]
[1749341932303,1.11551066,650.04,649.38,0.417]
[1749341932501,1.11551066,650.03,649.38,0.417]
[1749341932702,1.11551066,650.02,649.38,0.417]
[1749341932906,1.11551066,650.01,649.38,0.417]
[1749341933107,1.11551066,650.0,649.38,0.417]
[1749341933407,0.2678458,649.86,649.38,0.417]
[1749341934507,1.14836756,650.07,649.38,0.417]
[1749341934804,1.11556586,650.06,649.38,0.417]
[1749341935108,0.26783962,649.9,649.38,0.417]
[1749341935307,1.11556586,649.89,649.38,0.417]
[1749341935604,1.11556586,649.88,649.38,0.417]
[1749341935808,1.11556586,649.87,649.38,0.417]
[1749341936008,1.11556586,649.86,649.38,0.417]
[1749341936208,0.26783962,649.9,649.38,0.417]
[1749341936408,1.11560287,649.89,649.38,0.417]
[1749341936606,1.11560287,649.88,649.38,0.417]
[1749341936909,1.11560287,649.87,649.38,0.417]
[1749341937208,1.11560287,649.86,649.37,0.701]
[1749341937410,0.26783962,649.9,649.37,0.701]
[1749341937708,1.11569826,649.89,649.37,0.701]
[1749341937906,0.26783962,649.77,649.37,0.701]
[1749341940607,1.14836756,650.07,649.37,0.701]
[1749341940808,0.26783962,649.68,649.37,0.701]
[1749341941308,1.11571503,650.04,649.37,0.701]
[1749341941509,1.11571503,650.03,649.37,0.701]
[1749341941708,1.11571503,650.02,649.37,0.701]
[1749341941911,1.23524889,650.06,649.37,0.701]
[1749341941912,1.11571503,650.01,649.37,0.701]
[1749341942107,0.26785508,649.87,649.37,0.701]
[1749341942310,1.11571503,649.86,649.37,0.701]
[1749341942513,1.11571503,649.85,649.37,0.701]
[1749341942712,1.11571503,649.84,649.37,0.701]
[1749341942913,1.11571503,649.83,649.37,0.701]
[1749341943214,1.11571503,649.82,649.37,0.701]
[1749341943516,1.11571503,649.81,649.37,0.701]
[1749341943716,1.11571503,649.8,649.3,0.417]
[1749341943918,0.26788601,649.71,649.3,0.417]
[1749341946519,1.14836756,650.02,649.3,0.417]
[1749341946815,1.42282406,650.01,649.31,0.991]
[1749341947015,1.11513649,650.0,649.31,0.991]
[1749341947319,1.11513649,649.99,649.31,0.991]
[1749341947514,1.11513649,649.98,649.31,0.991]
[1749341947718,1.11513649,649.97,649.31,0.991]
[1749341948013,0.2678757,649.82,649.31,0.991]
[1749341948220,1.11513649,649.81,649.31,0.991]
[1749341948415,1.11513649,649.8,649.31,0.991]
[1749341948614,1.11513649,649.79,649.31,0.991]
[1749341948816,1.11513649,649.78,649.31,0.991]
[1749341949016,0.2678757,649.82,649.31,0.991]
[1749341949219,1.1147951,649.81,649.31,0.991]
[1749341949420,0.2678757,649.82,649.31,0.991]
[1749341949421,1.1147951,649.8,649.31,0.991]
[1749341949621,1.1147951,649.79,649.31,0.991]
[1749341949817,0.26789323,649.69,649.31,0.991]
[1749341952722,1.14836756,649.96,649.31,0.991]
[1749341952926,0.26788189,649.6,649.31,0.991]
[1749341953123,1.11440677,649.94,649.31,0.991]
[1749341953325,1.11440677,649.93,649.31,0.991]
[1749341953521,1.11440677,649.92,649.31,0.991]
[1749341953727,1.11440677,649.91,649.31,0.991]
[1749341954021,0.26788807,649.77,649.31,0.991]
[1749341954222,1.11440677,649.76,649.31,0.991]
[1749341954426,1.11440677,649.75,649.31,0.991]
[1749341954727,1.11440677,649.74,649.31,0.991]
[1749341954926,0.26788807,649.77,649.31,0.991]
[1749341955127,1.11403346,649.76,649.31,0.991]
[1749341955327,1.11403346,649.75,649.31,0.991]
[1749341955527,1.23123362,649.95,649.31,0.991]
[1749341955727,1.113894,649.94,649.31,0.991]
[1749341956028,0.2679056,649.65,649.31,0.991]
[1749341956223,1.113894,649.92,649.31,0.991]
[1749341956424,1.113894,649.91,649.31,0.991]
[1749341956624,1.113894,649.9,649.31,0.991]
[1749341956924,1.113894,649.89,649.31,0.991]
[1749341957127,0.2678891,649.77,649.31,0.991]
[1749341957329,1.113894,649.76,649.31,0.991]
[1749341957528,1.113894,649.75,649.31,0.991]
[1749341957828,0.2678891,649.77,649.31,0.991]
[1749341958028,1.11364454,649.76,649.31,0.991]
[1749341958224,1.11364454,649.75,649.31,0.991]
[1749341958428,0.2678891,649.77,649.31,0.991]
[1749341958628,1.11346182,649.76,649.31,0.991]
[1749341958927,0.26788292,649.66,649.31,0.991]
[1749341960028,1.08,649.65,649.31,0.991]
[1749341961825,0.26791591,649.57,649.31,0.991]
[1749341964627,1.08,649.65,649.31,0.991]
[1749341966033,0.26791591,649.57,649.31,0.991]
[1749341968729,0.26791591,649.57,649.29,0.417]
[1749341970534,1.08,649.65,649.29,0.417]
[1749341970931,0.26798193,649.51,649.29,0.417]
[1749341971336,0.26798193,649.51,649.3,0.873]
[1749341973533,1.11189917,649.95,649.3,0.873]
[1749341973832,1.11189917,649.94,649.3,0.873]
[1749341974036,0.26787982,649.79,649.3,0.873]
[1749341976041,0.964,649.78,649.3,0.873]
[1749341976938,0.26789735,649.67,649.3,0.873]
[1749341979644,0.964,649.78,649.3,0.873]
[1749341980045,0.26789735,649.58,649.3,0.873]
[1749341980242,0.964,649.78,649.3,0.873]
[1749341981545,0.26789735,649.67,649.3,0.873]
[1749341982650,0.964,649.78,649.3,0.873]
[1749341982948,0.26789735,649.58,649.3,0.873]
[1749341983251,0.964,649.78,649.3,0.873]
[1749341983449,0.964,649.78,649.29,0.417]
[1749341984450,0.26796027,649.66,649.29,0.417]
[1749341985554,0.964,649.78,649.29,0.417]
[1749341985854,0.26796027,649.57,649.29,0.417]
[1749341986153,0.964,649.78,649.29,0.417]
[1749341986853,0.964,649.78,649.3,1.116]
[1749341987354,0.26789735,649.67,649.3,1.116]
[1749341988756,0.964,649.78,649.3,1.116]
[1749341989852,0.26789735,649.67,649.3,1.116]
[1749341990858,0.26789735,649.67,649.31,0.417]
[1749341997662,0.964,649.78,649.31,0.417]
[1749341997859,0.26789735,649.59,649.31,0.417]
[1749341998063,0.964,649.78,649.31,0.417]
[1749341999161,0.26789735,649.67,649.31,0.417]
[1749342000562,0.964,649.78,649.31,0.417]
[1749342000858,0.26789735,649.59,649.31,0.417]
[1749342001263,0.964,649.78,649.31,0.417]
[1749342002158,0.26789735,649.67,649.31,0.417]
[1749342006764,0.26793345,649.59,649.31,0.417]
[1749342008067,0.26793345,649.59,649.32,1.028]
[1749342009670,0.964,649.78,649.32,1.028]
[1749342009866,0.26789529,649.53,649.32,1.028]
[1749342010067,0.964,649.78,649.32,1.028]
[1749342011370,0.26789529,649.67,649.32,1.028]
[1749342012773,0.964,649.78,649.32,1.028]
[1749342013077,0.26789529,649.59,649.32,1.028]
[1749342013277,0.964,649.78,649.32,1.028]
[1749342014476,0.26789529,649.67,649.32,1.028]
[1749342015677,1.0978953,649.97,649.32,1.028]
[1749342015875,1.0978953,649.96,649.32,1.028]
[1749342016177,0.26787467,649.59,649.32,1.028]
[1749342016372,1.0978953,649.94,649.32,1.028]
[1749342016576,1.0978953,649.93,649.32,1.028]
[1749342016775,1.0978953,649.92,649.32,1.028]
[1749342016975,1.23766626,649.96,649.32,1.028]
[1749342016976,1.0978953,649.91,649.32,1.028]
[1749342017173,0.26788085,649.78,649.32,1.028]
[1749342018479,0.26788085,649.78,649.33,0.417]
[1749342018680,0.923,649.77,649.33,0.417]
[1749342018876,0.26787364,649.67,649.33,0.417]
[1749342021579,0.923,649.77,649.33,0.417]
[1749342021874,1.09789072,649.76,649.33,0.417]
[1749342022081,0.26789426,649.67,649.33,0.417]
[1749342024681,0.923,649.77,649.33,0.417]
[1749342024877,1.09809988,649.76,649.33,0.417]
[1749342025079,0.26789426,649.59,649.33,0.417]
[1749342025380,0.923,649.77,649.33,0.417]
[1749342025679,1.0981625,649.76,649.33,0.417]
[1749342025879,1.0981625,649.75,649.33,0.417]
[1749342026078,1.0981625,649.74,649.33,0.417]
[1749342026277,0.923,649.77,649.33,0.417]
[1749342026480,1.09823667,649.76,649.33,0.417]
[1749342026682,0.26789735,649.64,649.33,0.417]
[1749342027684,0.923,649.77,649.33,0.417]
[1749342027885,0.26789426,649.57,649.33,0.417]
[1749342028088,1.09835279,649.75,649.33,0.417]
[1749342028388,1.09835279,649.74,649.33,0.417]
[1749342028583,0.923,649.77,649.33,0.417]
[1749342029388,0.26793964,649.67,649.33,0.417]
[1749342030684,0.923,649.77,649.33,0.417]
[1749342030888,0.26793964,649.59,649.34,0.743]
[1749342031085,1.09882144,649.75,649.34,0.743]
[1749342031285,0.923,649.77,649.34,0.743]
[1749342031490,1.09881887,649.76,649.34,0.743]
[1749342031684,1.09881887,649.75,649.34,0.743]
[1749342031888,0.923,649.77,649.34,0.743]
[1749342032188,1.09882585,649.76,649.34,0.743]
[1749342032487,0.2678922,649.67,649.34,0.743]
[1749342033591,0.923,649.77,649.34,0.743]
[1749342033788,1.09884854,649.76,649.34,0.743]
[1749342033989,0.2678922,649.59,649.34,0.743]
[1749342034387,0.923,649.77,649.34,0.743]
[1749342034592,1.09884759,649.76,649.34,0.743]
[1749342034791,1.09884759,649.75,649.34,0.743]
[1749342034990,1.09884759,649.74,649.34,0.743]
[1749342035196,0.923,649.77,649.34,0.743]
[1749342035389,1.09884126,649.76,649.34,0.743]
[1749342035586,0.26789529,649.65,649.34,0.743]
[1749342036690,0.923,649.77,649.34,0.743]
[1749342036889,0.2678922,649.58,649.34,0.743]
[1749342037090,0.923,649.77,649.34,0.743]
[1749342038192,0.26788807,649.67,649.34,0.743]
[1749342045801,0.923,649.77,649.35,0.417]
[1749342045996,0.26787982,649.59,649.35,0.417]
[1749342046205,0.923,649.77,649.35,0.417]
[1749342047602,0.26787982,649.67,649.35,0.417]
[1749342048803,0.2678757,649.6,649.35,0.417]
[1749342051702,0.923,649.77,649.35,0.417]
[1749342051900,0.923,649.77,649.36,0.826]
[1749342052203,0.2679221,649.54,649.36,0.826]
[1749342052503,0.923,649.77,649.36,0.826]
[1749342053705,0.26786539,649.67,649.36,0.826]
[1749342054804,0.923,649.77,649.36,0.826]
[1749342055002,0.26786539,649.6,649.36,0.826]
[1749342055400,0.923,649.77,649.36,0.826]
[1749342056800,0.26786539,649.67,649.36,0.826]
[1749342057701,0.923,649.77,649.36,0.826]
[1749342057905,0.26786539,649.6,649.36,0.826]
[1749342058104,0.923,649.77,649.36,0.826]
[1749342059503,0.26786539,649.67,649.36,0.826]
[1749342060607,0.923,649.77,649.36,0.826]
[1749342061404,0.26786539,649.67,649.36,0.826]
[1749342063604,1.0967554,649.95,649.36,0.826]
[1749342063807,0.30768757,650.01,649.36,0.826]
[1749342063808,1.0967554,649.94,649.36,0.826]
[1749342064007,0.26784683,649.81,649.36,0.826]
[1749342064505,1.1,649.8,649.36,0.826]
[1749342067006,0.2678623,649.7,649.36,0.826]
[1749342069708,1.1,649.8,649.36,0.826]
[1749342070912,0.2678623,649.7,649.36,0.826]
[1749342072511,0.2678623,649.7,649.37,0.417]
[1749342072815,1.1,649.8,649.37,0.417]
[1749342073012,0.26781695,649.74,649.37,0.417]
[1749342075715,1.1,649.8,649.37,0.417]